bitfinex/quotes_BTCUSD_20240908
["timestamp","ask_amount","ask_price","bid_price","bid_amount"]
[1725817726002,0.001,54464.0,54463.0,1.02621775]
[1725817726691,0.001,54464.0,54463.0,1.03548467]
[1725817727104,0.001,54464.0,54463.0,1.03248467]
[1725817727320,0.002,54464.0,54463.0,1.03848467]
[1725817727528,0.003,54464.0,54463.0,1.04648467]
[1725817728021,0.000815,54469.0,54468.0,0.002]
[1725817728249,0.000815,54469.0,54468.0,0.0368204]
[1725817728466,0.000815,54469.0,54468.0,0.04309236]
[1725817729318,0.000815,54469.0,54468.0,0.04509236]
[1725817730937,0.000815,54469.0,54468.0,0.20196736]
[1725817731140,0.000815,54469.0,54468.0,0.34366736]
[1725817731478,0.000815,54469.0,54468.0,0.63741736]
[1725817732487,0.000815,54469.0,54468.0,1.03946736]
[1725817732698,0.000815,54469.0,54468.0,1.43184475]
[1725817733110,0.000815,54469.0,54468.0,1.42984475]
[1725817733319,0.000815,54469.0,54468.0,1.43184475]
[1725817733941,0.001815,54469.0,54468.0,1.44284475]
[1725817734347,0.002815,54469.0,54468.0,1.45684475]
[1725817734552,0.000815,54469.0,54468.0,1.42984475]
[1725817734771,0.000815,54469.0,54468.0,1.42784475]
[1725817734992,0.001815,54469.0,54468.0,1.44184475]
[1725817735785,0.002815,54469.0,54468.0,1.45484475]
[1725817736440,0.002815,54469.0,54468.0,1.45684475]
[1725817736653,0.002815,54469.0,54468.0,1.45284475]
[1725817736885,0.002815,54469.0,54468.0,1.45484475]
[1725817737206,0.001,54469.0,54468.0,1.45484475]
[1725817737641,0.001,54469.0,54468.0,1.45684475]
[1725817738526,0.001,54469.0,54468.0,1.44284475]
[1725817738743,0.000814,54479.0,54478.0,0.146848]
[1725817738956,0.000814,54479.0,54478.0,1.49089]
[1725817739160,0.000814,54479.0,54478.0,1.49712157]
[1725817739371,0.000814,54479.0,54478.0,1.59092843]
[1725817740050,0.000814,54479.0,54478.0,1.59492843]
[1725817740481,0.000814,54479.0,54478.0,1.60092843]
[1725817741696,0.000814,54479.0,54478.0,1.60292843]
[1725817741912,0.000814,54479.0,54478.0,1.60092843]
[1725817742780,0.000814,54479.0,54478.0,1.59892843]
[1725817742992,0.000814,54479.0,54478.0,1.50712157]
[1725817743515,0.000814,54479.0,54478.0,1.60133397]
[1725817743953,0.000815,54487.0,54486.0,0.4194585]
[1725817744175,0.000815,54487.0,54486.0,0.46597656]
[1725817744389,0.000815,54487.0,54486.0,0.76962956]
[1725817744599,0.000815,54487.0,54486.0,0.77584941]
[1725817744824,0.000315,54487.0,54486.0,0.77584941]
[1725817745236,0.000315,54487.0,54486.0,1.06950241]
[1725817745677,0.005315,54487.0,54486.0,1.06950241]
[1725817746095,0.000315,54487.0,54486.0,1.06950241]
[1725817746312,0.001315,54487.0,54486.0,1.07650241]
[1725817746927,0.001315,54487.0,54486.0,1.17374019]
[1725817747142,0.001315,54487.0,54486.0,1.33937689]
[1725817747386,0.002315,54487.0,54486.0,1.33937689]
[1725817747628,0.001315,54487.0,54486.0,1.63302989]
[1725817747853,0.001315,54487.0,54486.0,1.64102989]
[1725817748327,0.000315,54487.0,54486.0,1.62602989]
[1725817748527,0.000315,54487.0,54486.0,1.63802989]
[1725817748736,0.001315,54487.0,54486.0,1.64802989]
[1725817749379,0.000315,54487.0,54486.0,1.63802989]
[1725817749803,0.001315,54487.0,54486.0,1.64802989]
[1725817750248,0.000315,54487.0,54486.0,1.63802989]
[1725817750490,0.00082,54492.0,54491.0,0.440439]
[1725817750727,0.00082,54492.0,54491.0,1.04552865]
[1725817750965,0.00082,54492.0,54491.0,1.05172464]
[1725817751171,0.00082,54492.0,54491.0,0.75809864]
[1725817752295,0.00182,54492.0,54491.0,0.76709864]
[1725817752725,0.00182,54492.0,54491.0,0.47347264]
[1725817752942,0.00182,54492.0,54491.0,0.04712849]
[1725817752943,0.14863,54492.0,54491.0,0.04712849]
[1725817753161,0.735872,54492.0,54491.0,0.02512849]
[1725817753398,0.735872,54492.0,54491.0,0.03512849]
[1725817753612,0.735872,54492.0,54491.0,0.0289325]
[1725817753847,0.735872,54492.0,54491.0,0.009]
[1725817754056,0.735872,54492.0,54491.0,0.0289325]
[1725817754490,0.734872,54492.0,54491.0,0.0099325]
[1725817754708,0.734065,54491.0,54490.0,0.0099325]
[1725817755385,0.440446,54490.0,54489.0,0.0099325]
[1725817755592,0.581963,54488.0,54487.0,0.002]
[1725817755803,1.0412417,54488.0,54487.0,0.002]
[1725817756059,1.4578837,54488.0,54487.0,0.002]
[1725817757634,1.4578837,54488.0,54487.0,0.003]
[1725817758288,1.4363001,54488.0,54487.0,0.003]
[1725817759512,1.7299421,54488.0,54487.0,0.003]
[1725817760133,1.7419421,54488.0,54487.0,0.003]
[1725817760345,1.7427571,54488.0,54487.0,0.003]
[1725817760552,1.7437571,54488.0,54487.0,0.004]
[1725817760989,1.7427571,54488.0,54487.0,0.003]
[1725817761218,1.7317571,54488.0,54487.0,0.003]
[1725817761472,1.78653018,54488.0,54487.0,0.003]
[1725817761669,1.7457571,54488.0,54487.0,0.004]
[1725817762259,1.81824651,54488.0,54487.0,0.004]
[1725817762406,1.85901959,54488.0,54487.0,0.003]
[1725817762961,1.81824651,54488.0,54487.0,0.004]
[1725817763408,1.90040613,54488.0,54487.0,0.004]
[1725817764380,1.81824651,54488.0,54487.0,0.004]
[1725817765431,1.92779267,54488.0,54487.0,0.004]
[1725817766617,1.85530326,54488.0,54487.0,0.004]
[1725817766794,1.7457571,54488.0,54487.0,0.004]
[1725817766994,1.85551139,54488.0,54487.0,0.004]
[1725817767458,1.7457571,54488.0,54487.0,0.004]
[1725817767704,1.76601701,54488.0,54487.0,0.004]
[1725817767929,1.95100008,54488.0,54487.0,0.004]
[1725817768352,1.97975083,54488.0,54487.0,0.004]
[1725817769715,1.79476776,54488.0,54487.0,0.004]
[1725817771446,0.734335,54471.0,54470.0,1.16570836]
[1725817771677,1.028069,54471.0,54470.0,0.55430836]
[1725817771875,0.440608,54470.0,54469.0,0.0115625]
[1725817772084,1.028086,54470.0,54469.0,0.0115625]
[1725817772533,0.734347,54470.0,54469.0,0.0115625]
[1725817773335,0.734347,54470.0,54469.0,0.0175625]
[1725817774836,0.734347,54470.0,54469.0,0.0215625]
[1725817775045,0.7613792,54470.0,54469.0,0.0215625]
[1725817775249,0.7613792,54470.0,54469.0,0.0175625]
[1725817775653,0.7653792,54470.0,54469.0,0.0175625]
[1725817775857,0.4716402,54470.0,54469.0,0.2537625]
[1725817776059,0.4716402,54470.0,54469.0,0.2497625]
[1725817776322,0.05489563,54477.0,54475.0,0.0219325]
[1725817776514,0.1655019,54488.0,54470.0,0.01]
[1725817776515,0.000815,54488.0,54487.0,0.012]
[1725817776717,0.000815,54488.0,54487.0,0.393024]
[1725817776918,0.000815,54488.0,54487.0,0.43631965]
[1725817777122,0.000815,54488.0,54487.0,0.46225709]
[1725817778199,0.000815,54488.0,54487.0,0.46625709]
[1725817778615,0.000815,54488.0,54487.0,0.46225709]
[1725817779689,0.000815,54488.0,54487.0,0.46025709]
[1725817779915,0.000815,54488.0,54487.0,0.46825709]
[1725817780118,0.000815,54488.0,54487.0,0.46725709]
[1725817780290,0.000815,54488.0,54487.0,0.43196144]
[1725817780540,0.000815,54488.0,54487.0,0.72060944]
[1725817780798,0.000815,54488.0,54487.0,0.71460944]
[1725817781009,0.000815,54488.0,54487.0,0.72560944]
[1725817781210,0.000815,54488.0,54487.0,0.7856672]
[1725817781369,0.000815,54488.0,54487.0,0.7806672]
[1725817781572,0.000815,54488.0,54487.0,0.7856672]
[1725817782150,0.000815,54488.0,54487.0,0.7796672]
[1725817782375,0.000815,54488.0,54487.0,0.7856672]
[1725817782858,0.000815,54488.0,54487.0,0.7796672]
[1725817783081,0.000815,54488.0,54487.0,0.7846672]
[1725817783610,0.000815,54488.0,54487.0,0.7796672]
[1725817783841,0.000815,54488.0,54487.0,0.7836672]
[1725817784259,0.000815,54488.0,54487.0,0.72360944]
[1725817784529,0.000815,54488.0,54487.0,0.71960944]
[1725817784745,0.000815,54488.0,54487.0,0.72460944]
[1725817785234,0.000815,54488.0,54487.0,0.71960944]
[1725817785656,0.000815,54488.0,54487.0,0.72560944]
[1725817786470,0.000815,54488.0,54487.0,0.72723944]
[1725817790850,0.000815,54488.0,54487.0,0.72223944]
[1725817791498,0.000815,54488.0,54487.0,0.72023944]
[1725817791720,0.000815,54488.0,54487.0,0.72523944]
[1725817794105,0.000815,54488.0,54487.0,0.42959144]
[1725817794345,0.000815,54488.0,54487.0,0.43159144]
[1725817799533,0.293626,54491.0,54487.0,0.28476744]
[1725817799744,0.293626,54491.0,54489.0,0.01]
[1725817799955,0.27484042,54493.0,54489.0,0.0299325]
[1725817800177,0.27484042,54493.0,54490.0,0.0059448]
[1725817800396,0.14681,54492.0,54491.0,0.002]
[1725817800868,0.14681,54492.0,54491.0,0.00794454]
[1725817801560,0.24681,54492.0,54491.0,0.00794454]
[1725817801997,0.24681,54492.0,54491.0,0.00594454]
[1725817801998,0.834052,54492.0,54491.0,0.00594454]
[1725817802409,0.146815,54490.0,54489.0,0.0099325]
[1725817803502,0.146815,54491.0,54489.0,0.1058325]
[1725817803735,0.1,54492.0,54489.0,0.14338875]
[1725817803956,0.12707586,54493.0,54492.0,0.0979]
[1725817804428,0.27388286,54493.0,54492.0,0.0979]
[1725817805091,0.1,54493.0,54492.0,0.2167]
[1725817805298,0.246806,54494.0,54493.0,0.002]
[1725817806121,0.1,54494.0,54493.0,0.02666325]
[1725817806544,0.246805,54494.0,54493.0,0.02666325]
[1725817806746,0.246805,54494.0,54493.0,0.002]
[1725817807055,0.249805,54494.0,54493.0,0.002]
[1725817807480,0.146807,54493.0,54492.0,0.2147]
[1725817807694,0.246807,54493.0,54492.0,0.2167]
[1725817809014,0.246807,54493.0,54492.0,0.2147]
[1725817809505,0.247807,54493.0,54492.0,0.2147]
[1725817809931,0.247807,54493.0,54492.0,0.2167]
[1725817810157,0.246807,54493.0,54492.0,0.2167]
[1725817810380,0.246807,54493.0,54491.0,0.011628]
[1725817810381,0.31000639,54493.0,54491.0,0.013628]
[1725817810592,0.24681,54492.0,54491.0,0.013628]
[1725817811904,0.24681,54492.0,54491.0,0.015628]
[1725817812150,0.24681,54492.0,54491.0,0.005628]
[1725817812356,0.540431,54492.0,54491.0,0.004628]
[1725817813037,0.540431,54492.0,54491.0,0.01057356]
[1725817813251,0.540431,54492.0,54491.0,0.01157356]
[1725817813941,0.540431,54492.0,54491.0,0.00957356]
[1725817814399,0.540431,54492.0,54491.0,0.01157356]
[1725817814618,0.540431,54492.0,54491.0,0.01257356]
[1725817814868,0.540431,54492.0,54491.0,0.01057356]
[1725817815087,0.540431,54492.0,54491.0,0.00957356]
[1725817815528,0.541431,54492.0,54491.0,0.00957356]
[1725817815952,0.541431,54492.0,54491.0,0.003628]
[1725817816442,0.541431,54492.0,54491.0,0.105528]
[1725817817075,0.541431,54492.0,54491.0,0.11147395]
[1725817818208,0.541431,54492.0,54491.0,0.105528]
[1725817818639,0.59635971,54492.0,54491.0,0.105528]
[1725817819473,0.62382407,54492.0,54491.0,0.105528]
[1725817819910,0.541431,54492.0,54491.0,0.105528]
[1725817820409,0.62382407,54492.0,54491.0,0.105528]
[1725817820621,0.6015801,54492.0,54491.0,0.105528]
[1725817820826,0.6005801,54492.0,54491.0,0.105528]
[1725817821214,0.60158041,54492.0,54491.0,0.105528]
[1725817821490,0.65631695,54492.0,54491.0,0.105528]
[1725817822204,0.65631695,54492.0,54491.0,0.103528]
[1725817822452,1.19442795,54492.0,54491.0,0.001628]
[1725817822661,1.38795645,54492.0,54491.0,0.00757378]
[1725817822919,1.27881798,54492.0,54491.0,0.001628]
[1725817823588,0.89700619,54492.0,54491.0,0.103528]
[1725817823796,0.76778717,54492.0,54491.0,0.103528]
[1725817824024,0.12874235,54492.0,54491.0,0.14301821]
[1725817824272,0.000814,54493.0,54491.0,0.14301821]
[1725817824273,0.147622,54493.0,54491.0,0.1569963]
[1725817824497,0.28462746,54492.0,54491.0,0.14141906]
[1725817824721,0.25706,54492.0,54491.0,0.14141906]
[1725817824928,0.14681,54492.0,54491.0,0.14141906]
[1725817825132,0.14781,54492.0,54491.0,0.14141906]
[1725817825360,0.14781,54492.0,54491.0,0.14441906]
[1725817825595,0.14681,54492.0,54491.0,0.14441906]
[1725817826636,0.13863146,54493.0,54492.0,0.2640325]
[1725817826845,0.13863146,54493.0,54492.0,0.4108425]
[1725817826846,0.11106289,54493.0,54492.0,0.4108425]
[1725817827052,0.11106289,54493.0,54492.0,0.4168008]
[1725817827889,0.11106289,54493.0,54492.0,0.7124218]
[1725817828075,0.05593219,54493.0,54492.0,1.0527697]
[1725817828553,0.05593219,54493.0,54492.0,1.0507697]
[1725817828554,0.000814,54493.0,54492.0,1.0507697]
[1725817828797,0.000814,54493.0,54492.0,0.7591487]
[1725817829282,0.000814,54493.0,54492.0,0.7154218]
[1725817829489,0.000814,54493.0,54492.0,0.4218008]
[1725817829927,0.000814,54493.0,54492.0,0.7154218]
[1725817834274,0.000814,54493.0,54492.0,0.4218008]
[1725817834500,0.05589605,54493.0,54492.0,0.7154218]
[1725817834948,0.05589605,54493.0,54492.0,0.7170498]
[1725817835364,0.000814,54493.0,54492.0,0.7170498]
[1725817836546,0.05589605,54493.0,54492.0,0.7170498]
[1725817836765,0.000814,54493.0,54492.0,0.7170498]
[1725817838437,0.05589605,54493.0,54492.0,0.7170498]
[1725817838640,0.000814,54493.0,54492.0,0.7170498]
[1725817838841,0.000814,54493.0,54492.0,0.4234288]
[1725817840572,0.000814,54493.0,54492.0,0.2766188]
[1725817841015,0.05588823,54493.0,54492.0,0.2766188]
[1725817841919,0.000814,54493.0,54492.0,0.2766188]
[1725817842348,0.52384735,54493.0,54492.0,0.2546188]
[1725817842773,0.81746235,54493.0,54492.0,0.2546188]
[1725817843266,0.734851,54493.0,54492.0,0.2526188]
[1725817843512,0.81746244,54493.0,54492.0,0.2526188]
[1725817843725,0.734851,54493.0,54492.0,0.2466605]
[1725817844410,0.739851,54493.0,54492.0,0.24998591]
[1725817844823,0.64730486,54493.0,54492.0,0.24998591]
[1725817845028,1.032652,54493.0,54492.0,0.00795341]
[1725817845235,1.11526429,54493.0,54492.0,0.01788591]
[1725817845445,1.032652,54493.0,54492.0,0.0115605]
[1725817845621,1.032652,54493.0,54492.0,0.001628]
[1725817845622,1.027652,54493.0,54492.0,0.001628]
[1725817845880,1.029652,54493.0,54492.0,0.001628]
[1725817846100,1.034652,54493.0,54492.0,0.001628]
[1725817846280,1.032652,54493.0,54492.0,0.001628]
[1725817846808,1.034652,54493.0,54492.0,0.001628]
[1725817847068,1.2624287,54493.0,54492.0,0.001628]
[1725817847273,1.3624287,54493.0,54492.0,0.001628]
[1725817847914,1.3632427,54493.0,54492.0,0.001628]
[1725817851023,1.50094075,54493.0,54492.0,0.001628]
[1725817852920,1.3632427,54493.0,54492.0,0.001628]
[1725817853153,1.47338348,54493.0,54492.0,0.001628]
[1725817853611,1.38518366,54493.0,54492.0,0.001628]
[1725817855025,1.27504288,54493.0,54492.0,0.001628]
[1725817855917,1.3632427,54493.0,54492.0,0.001628]
[1725817856351,1.59028082,54493.0,54492.0,0.001628]
[1725817856606,1.99397965,54493.0,54492.0,0.001628]
[1725817856840,2.10683926,54493.0,54492.0,0.001628]
[1725817858158,1.77762421,54493.0,54492.0,0.001628]
[1725817858867,1.77103247,54493.0,54492.0,0.001628]
[1725817859097,1.95601554,54493.0,54492.0,0.001628]
[1725817859308,2.24963054,54493.0,54492.0,0.001628]
[1725817863328,2.43520624,54493.0,54492.0,0.001628]
[1725817864852,2.24963054,54493.0,54492.0,0.001628]
[1725817865282,2.06464747,54493.0,54492.0,0.001628]
[1725817865520,2.25014668,54493.0,54492.0,0.001628]
[1725817865749,1.69803247,54493.0,54492.0,0.001628]
[1725817867140,1.69481895,54493.0,54492.0,0.001628]
[1725817867363,1.69481895,54493.0,54491.0,0.001628]
[1725817867364,1.027673,54492.0,54491.0,0.001628]
[1725817867584,1.027673,54492.0,54487.0,0.00163]
[1725817867585,0.60592238,54488.0,54487.0,0.00163]
[1725817867844,0.73466565,54488.0,54487.0,0.00163]
[1725817868074,0.75766565,54488.0,54487.0,0.00163]
[1725817868282,1.63859165,54488.0,54487.0,0.00163]
[1725817868500,1.82357472,54488.0,54487.0,0.00163]
[1725817869456,1.19343338,54476.0,54475.0,0.2288]
[1725817869687,1.34836554,54476.0,54475.0,0.2288]
[1725817869948,1.69253862,54476.0,54475.0,0.00695734]
[1725817870159,1.7200047,54476.0,54475.0,0.00695734]
[1725817870380,1.7200047,54476.0,54472.0,0.1268]
[1725817870381,0.734307,54473.0,54472.0,0.1268]
[1725817870664,1.16146442,54473.0,54472.0,0.1268]
[1725817870863,1.45518742,54473.0,54472.0,0.1268]
[1725817871581,1.40026889,54473.0,54472.0,0.1268]
[1725817872931,1.40726889,54473.0,54472.0,0.1278]
[1725817873136,1.30048938,54473.0,54472.0,0.1278]
[1725817873360,1.30948938,54473.0,54472.0,0.1278]
[1725817873576,1.14403,54473.0,54472.0,0.2298]
[1725817874281,1.13703,54473.0,54472.0,0.2288]
[1725817874517,1.12803,54473.0,54472.0,0.2288]
[1725817874731,1.13603,54473.0,54472.0,0.2288]
[1725817875128,1.16257831,54473.0,54472.0,0.2288]
[1725817875578,1.16957831,54473.0,54472.0,0.2298]
[1725817877093,1.18051729,54473.0,54472.0,0.2298]
[1725817883102,1.18051729,54473.0,54472.0,0.23143]
[1725817883318,1.18133229,54473.0,54472.0,0.23143]
[1725817883535,1.18133229,54473.0,54472.0,0.23841084]
[1725817883746,1.18133229,54473.0,54472.0,0.23143]
[1725817890370,1.23622867,54473.0,54472.0,0.23143]
[1725817891473,1.21008567,54473.0,54472.0,0.23143]
[1725817892323,1.29243025,54473.0,54472.0,0.23143]
[1725817892528,1.45520431,54473.0,54472.0,0.23143]
[1725817893687,1.37285973,54473.0,54472.0,0.00263]
[1725817893899,1.21008567,54473.0,54472.0,0.00263]
[1725817894304,1.31987844,54473.0,54472.0,0.00263]
[1725817895115,1.21008567,54473.0,54472.0,0.00263]
[1725817895519,1.32004478,54473.0,54472.0,0.00263]
[1725817896405,1.21008567,54473.0,54472.0,0.00263]
[1725817897405,1.34756117,54473.0,54472.0,0.00263]
[1725817899210,1.05383817,54473.0,54472.0,0.23173]
[1725817899443,0.30016329,54473.0,54472.0,0.24173]
[1725817899872,0.30016329,54473.0,54472.0,0.7355819]
[1725817899873,0.015815,54473.0,54472.0,0.7355819]
[1725817900369,0.015815,54473.0,54472.0,0.4418539]
[1725817901589,0.007815,54473.0,54472.0,0.4438539]
[1725817902071,0.015815,54473.0,54472.0,0.4448539]
[1725817902575,0.000815,54473.0,54472.0,0.4418539]
[1725817902815,0.001815,54473.0,54472.0,0.4528539]
[1725817903050,0.001815,54473.0,54472.0,0.4488539]
[1725817903292,0.001815,54473.0,54472.0,0.4418539]
[1725817903539,0.000815,54473.0,54472.0,0.2999899]
[1725817903772,0.000815,54473.0,54472.0,0.2949899]
[1725817904267,0.05583662,54473.0,54472.0,0.2949899]
[1725817904511,0.05583662,54473.0,54472.0,0.26866065]
[1725817904743,0.20269762,54473.0,54472.0,0.27366065]
[1725817904989,0.49642062,54473.0,54472.0,0.27366065]
[1725817905230,0.52393493,54473.0,54472.0,0.26366065]
[1725817905470,0.52393493,54473.0,54472.0,0.26766065]
[1725817905471,0.441399,54473.0,54472.0,0.26766065]
[1725817905712,0.84517002,54473.0,54472.0,0.26166065]
[1725817905945,0.84517002,54473.0,54472.0,0.25666065]
[1725817906187,0.84817002,54473.0,54472.0,0.26066065]
[1725817906405,0.84817002,54473.0,54472.0,0.25666065]
[1725817906630,0.84717002,54473.0,54472.0,0.24666065]
[1725817906850,0.84717002,54473.0,54472.0,0.24766065]
[1725817907068,0.85217002,54473.0,54472.0,0.24766065]
[1725817907432,0.85817002,54473.0,54472.0,0.2416625]
[1725817907641,0.85217002,54473.0,54472.0,0.2406625]
[1725817908280,0.8725975,54473.0,54472.0,0.2396625]
[1725817908488,0.87284511,54473.0,54472.0,0.2396625]
[1725817908691,0.87584511,54473.0,54472.0,0.2396625]
[1725817908899,0.87584356,54473.0,54472.0,0.2396625]
[1725817909109,0.87484356,54473.0,54472.0,0.2396625]
[1725817909351,0.87284356,54473.0,54472.0,0.2396625]
[1725817909576,0.87284356,54473.0,54472.0,0.23173]
[1725817909577,0.77948456,54473.0,54472.0,0.23173]
[1725817909821,0.78548456,54473.0,54472.0,0.23173]
[1725817910030,0.77248456,54473.0,54472.0,0.22973]
[1725817910263,1.17120756,54473.0,54472.0,0.00063]
[1725817910497,1.19796133,54473.0,54472.0,0.00063]
[1725817910939,1.20396133,54473.0,54472.0,0.00163]
[1725817911598,1.20096133,54473.0,54472.0,0.00163]
[1725817911814,1.20796133,54473.0,54472.0,0.00263]
[1725817912245,1.20196133,54473.0,54472.0,0.00063]
[1725817912518,1.35993193,54473.0,54472.0,0.00063]
[1725817912722,1.37293193,54473.0,54472.0,0.00263]
[1725817912947,1.36693193,54473.0,54472.0,0.00163]
[1725817913158,1.37293193,54473.0,54472.0,0.00263]
[1725817914235,1.36593193,54473.0,54472.0,0.00163]
[1725817916412,1.33656937,54473.0,54472.0,0.22833]
[1725817916623,1.17159877,54473.0,54472.0,0.22833]
[1725817916843,1.16359877,54473.0,54472.0,0.22733]
[1725817917068,1.17059877,54473.0,54472.0,0.22833]
[1725817920624,1.33591785,54473.0,54472.0,0.22833]
[1725817920850,1.3156623,54473.0,54472.0,0.22833]
[1725817921722,1.3156623,54473.0,54472.0,0.00263]
[1725817921960,1.48098138,54473.0,54472.0,0.00263]
[1725817922383,1.48098138,54473.0,54472.0,0.22833]
[1725817925206,1.48097431,54473.0,54472.0,0.22833]
[1725817925656,1.48097262,54473.0,54472.0,0.22833]
[1725817926071,1.3156623,54473.0,54472.0,0.22833]
[1725817928330,0.87687577,54473.0,54472.0,0.22833]
[1725817928537,0.848122,54473.0,54472.0,0.22833]
[1725817929824,0.74723238,54473.0,54472.0,0.23033]
[1725817930382,0.74723238,54473.0,54472.0,0.2353344]
[1725817930383,0.95831604,54473.0,54472.0,0.2353344]
[1725817930654,1.06850241,54473.0,54472.0,0.23033]
[1725817930791,0.95831604,54473.0,54472.0,0.23033]
[1725817930975,1.09605875,54473.0,54472.0,0.23033]
[1725817931186,1.0685057,54473.0,54472.0,0.22833]
[1725817931391,0.95831604,54473.0,54472.0,0.22833]
[1725817931591,1.09605875,54473.0,54472.0,0.22833]
[1725817932033,1.08305875,54473.0,54472.0,0.22633]
[1725817932237,0.21100904,54473.0,54472.0,0.26425175]
[1725817932469,0.16909686,54473.0,54472.0,0.28425175]
[1725817932676,0.11600904,54473.0,54472.0,0.29125615]
[1725817932896,0.11600904,54473.0,54472.0,0.43812015]
[1725817933099,0.11300904,54473.0,54472.0,0.43812015]
[1725817933295,0.11100904,54473.0,54472.0,0.43812015]
[1725817933499,0.11300904,54473.0,54472.0,0.29125615]
[1725817933708,0.11500904,54473.0,54472.0,0.43812015]
[1725817933969,0.11100904,54473.0,54472.0,0.43812015]
[1725817934312,0.11100904,54473.0,54472.0,1.02557615]
[1725817934557,0.000815,54473.0,54472.0,1.02557615]
[1725817935481,0.000815,54473.0,54472.0,1.03257615]
[1725817935696,0.000815,54473.0,54472.0,1.02857615]
[1725817935918,0.000815,54473.0,54472.0,1.02557615]
[1725817936133,0.001815,54473.0,54472.0,1.03557615]
[1725817936379,0.002815,54473.0,54472.0,1.03357615]
[1725817936613,0.002815,54473.0,54472.0,1.04357615]
[1725817936614,0.003815,54473.0,54472.0,1.04357615]
[1725817936834,0.002815,54473.0,54472.0,1.03357615]
[1725817937063,0.001815,54473.0,54472.0,1.02557615]
[1725817937278,0.001815,54473.0,54472.0,1.04357615]
[1725817937279,0.003815,54473.0,54472.0,1.04357615]
[1725817938416,0.1,54479.0,54478.0,0.3691805]
[1725817938631,0.960271,54480.0,54479.0,0.158845]
[1725817938862,0.960271,54480.0,54479.0,0.3691775]
[1725817938863,1.060271,54480.0,54479.0,0.3691775]
[1725817939082,1.060271,54480.0,54479.0,0.37615539]
[1725817940187,1.060271,54480.0,54479.0,0.37715539]
[1725817940427,1.060271,54480.0,54479.0,0.37815539]
[1725817940640,1.060271,54480.0,54479.0,0.40414464]
[1725817941530,0.960271,54480.0,54479.0,0.40414464]
[1725817941998,0.960271,54480.0,54479.0,0.25729964]
[1725817942209,0.960271,54480.0,54479.0,0.25529964]
[1725817942419,0.960271,54480.0,54479.0,0.25829964]
[1725817942630,0.960271,54480.0,54479.0,0.23431039]
[1725817942843,1.400798,54480.0,54479.0,0.09757789]
[1725817943056,1.988168,54480.0,54479.0,0.01197789]
[1725817943245,1.988168,54480.0,54479.0,0.003]
[1725817943532,1.988168,54480.0,54479.0,0.005]
[1725817943533,2.25578281,54480.0,54479.0,0.005]
[1725817943742,2.17315107,54480.0,54479.0,0.002]
[1725817943957,0.73424,54478.0,54477.0,0.0099325]
[1725817944184,0.7892492,54478.0,54477.0,0.0099325]
[1725817944827,0.73424,54478.0,54477.0,0.0099325]
[1725817945048,0.78925025,54478.0,54477.0,0.0099325]
[1725817945274,0.73424,54478.0,54477.0,0.0975325]
[1725817945724,0.81802094,54478.0,54477.0,0.0955325]
[1725817946164,0.78925025,54478.0,54477.0,0.0975325]
[1725817946608,0.79225025,54478.0,54477.0,0.0975325]
[1725817946826,0.79225025,54478.0,54477.0,0.0955325]
[1725817947057,0.78925025,54478.0,54477.0,0.0955325]
[1725817947285,0.79125025,54478.0,54477.0,0.0955325]
[1725817947485,0.79425025,54478.0,54477.0,0.0975325]
[1725817947695,0.74124,54478.0,54477.0,0.0975325]
[1725817948366,0.79625025,54478.0,54477.0,0.0975325]
[1725817948790,0.79325025,54478.0,54477.0,0.0975325]
[1725817949016,0.79225025,54478.0,54477.0,0.0975325]
[1725817949239,0.79425025,54478.0,54477.0,0.0975325]
[1725817949671,0.79425025,54478.0,54477.0,0.0955325]
[1725817949878,0.79425119,54478.0,54477.0,0.0955325]
[1725817950312,0.73924,54478.0,54477.0,0.0955325]
[1725817950548,0.79424966,54478.0,54477.0,0.0955325]
[1725817950758,0.73924,54478.0,54477.0,0.0955325]
[1725817951678,0.8440811,54478.0,54477.0,0.0955325]
[1725817951916,0.82257178,54478.0,54477.0,0.0955325]
[1725817952329,0.81957178,54478.0,54477.0,0.0955325]
[1725817952535,0.81757178,54478.0,54477.0,0.0955325]
[1725817952744,0.82057178,54478.0,54477.0,0.0955325]
[1725817952957,0.82257178,54478.0,54477.0,0.0955325]
[1725817953165,0.81757178,54478.0,54477.0,0.0975325]
[1725817953382,0.737055,54478.0,54477.0,0.0975325]
[1725817953653,0.81757178,54478.0,54477.0,0.0955325]
[1725817953873,0.52706767,54480.0,54479.0,1.3615415]
[1725817954090,0.10486767,54480.0,54479.0,2.58529389]
[1725817954365,0.000814,54493.0,54479.0,2.58529389]
[1725817954366,0.000814,54493.0,54492.0,1.2321055]
[1725817954576,0.000814,54493.0,54492.0,1.32038215]
[1725817954841,0.000814,54493.0,54492.0,1.75290592]
[1725817955073,0.000814,54493.0,54492.0,1.75490592]
[1725817955307,0.000814,54493.0,54492.0,1.82290592]
[1725817955512,0.000814,54493.0,54492.0,1.82090592]
[1725817955963,0.000814,54493.0,54492.0,1.82490592]
[1725817956182,0.000814,54493.0,54492.0,1.90187213]
[1725817956395,0.000814,54493.0,54492.0,2.01587213]
[1725817956624,0.001814,54493.0,54492.0,1.74362927]
[1725817956867,0.001814,54493.0,54492.0,1.90687213]
[1725817957104,0.001814,54493.0,54492.0,1.91187213]
[1725817957105,0.000814,54493.0,54492.0,1.91187213]
[1725817957369,0.001814,54493.0,54492.0,1.90687213]
[1725817957604,0.001814,54493.0,54492.0,1.91087213]
[1725817958510,0.000814,54493.0,54492.0,1.90187213]
[1725817958746,0.000814,54493.0,54492.0,1.91587213]
[1725817958955,0.001814,54493.0,54492.0,1.91087213]
[1725817959172,0.001814,54493.0,54492.0,1.92487213]
[1725817959384,0.000814,54493.0,54492.0,1.90187213]
[1725817959612,0.000814,54493.0,54492.0,1.91087213]
[1725817959818,0.001814,54493.0,54492.0,1.92487213]
[1725817960231,0.000814,54493.0,54492.0,1.91587213]
[1725817960437,0.000814,54493.0,54492.0,1.92487213]
[1725817960642,0.001814,54493.0,54492.0,1.92087213]
[1725817960869,0.001814,54493.0,54492.0,1.36407577]
[1725817961086,0.001814,54493.0,54492.0,1.17526983]
[1725817961997,0.000814,54493.0,54492.0,1.16626983]
[1725817962203,0.001814,54493.0,54492.0,1.16126983]
[1725817962426,0.001814,54493.0,54492.0,1.17526983]
[1725817962640,0.001814,54493.0,54492.0,1.16126983]